fUSD/lending_fUSD_20250930
["ID","MTS","AMOUNT","RATE_DAILY","PERIOD"]
[388570664,1759243898848,-2303.01,0.00019726,2]
[388570665,1759243898859,-500.0,0.00019726,2]
[388570666,1759243898869,-224.42215408,0.00019726,2]
[388570667,1759243898878,-500.0,0.00019726,2]
[388570668,1759243898888,-500.0,0.00019726,2]
[388570669,1759243898897,-500.0,0.00019726,2]
[388570670,1759243898907,-500.0,0.00019726,2]
[388570671,1759243898916,-500.0,0.00019726,2]
[388570672,1759243898925,-1882.53,0.00019726,2]
[388570673,1759243898935,-1773.11,0.00019726,2]
[388570674,1759243898944,-500.0,0.00019726,2]
[388570675,1759243898954,-508.21,0.00019726,2]
[388570676,1759243898963,-772.62,0.00019726,2]
[388570677,1759243898973,-500.0,0.00019726,2]
[388570678,1759243898983,-500.0,0.00019726,2]
[388570679,1759243898992,-1174.34,0.00019726,2]
[388570680,1759243899002,-9394.178026,0.00019726,2]
[388570681,1759243899011,-405.942172,0.00019726,2]
[388570682,1759243899023,-417.411714,0.00019726,2]
[388570683,1759243899033,-354.136583,0.00019726,2]
[388570684,1759243899046,-1017.27,0.00019726,2]
[388570685,1759243899057,-3714.03504,0.00019726,2]
[388570686,1759243899067,-1085.56,0.00019726,2]
[388570687,1759243899076,-8041.96422,0.00019726,2]
[388570688,1759243899086,-500.0,0.00019726,2]
[388570689,1759243899096,-3092.84,0.00019726,2]
[388570690,1759243899106,-500.0,0.00019726,2]
[388570691,1759243899115,-1855.61,0.00019726,2]
[388570692,1759243899126,-500.0,0.00019726,2]
[388570693,1759243899140,-500.0,0.00019726,2]
[388570694,1759243899150,-666.51,0.00019726,2]
[388570695,1759243899160,-621.73,0.00019726,2]
[388570696,1759243899171,-500.0,0.00019726,2]
[388570697,1759243899180,-500.0,0.00019726,2]
[388570698,1759243899190,-866.59,0.00019726,2]
[388570699,1759243899200,-1122.49,0.00019726,2]
[388570700,1759243899210,-582.24,0.00019726,2]
[388570701,1759243899219,-500.0,0.00019726,2]
[388570702,1759243899228,-500.0,0.00019726,2]
[388570703,1759243899237,-151.0,0.00019726,2]
[388570704,1759243899247,-151.0,0.00019726,2]
[388570705,1759243899256,-500.0,0.00019726,2]
[388570706,1759243899266,-500.0,0.00019726,2]
[388570707,1759243899277,-151.0,0.00019726,2]
[388570708,1759243899286,-151.0,0.00019726,2]
[388570709,1759243899295,-272.161354,0.00019726,2]
[388570710,1759243899305,-500.0,0.00019726,2]
[388570711,1759243899315,-895.74,0.00019726,2]
[388570712,1759243899325,-176.55886425,0.00019726,2]
[388570713,1759243899335,-859.64,0.00019726,2]
[388570714,1759243899344,-1209.61,0.00019726,2]
[388570715,1759243899354,-633.69830761,0.00019726,2]
[388570716,1759243899363,-1580.78,0.00019726,2]
[388570717,1759243899373,-638.79,0.00019726,2]
[388570718,1759243899382,-500.0,0.00019726,2]
[388570719,1759243899391,-512.08,0.00019726,2]
[388570720,1759243899401,-500.0,0.00019726,2]
[388570721,1759243899410,-797.07,0.00019726,2]
[388570722,1759243899420,-500.0,0.00019726,2]
[388570723,1759243899429,-1013.67,0.00019726,2]
[388570724,1759243899438,-687.91,0.00019726,2]
[388570725,1759243899448,-500.0,0.00019726,2]
[388570726,1759243899457,-500.0,0.00019726,2]
[388570727,1759243899467,-151.0,0.00019726,2]
[388570728,1759243899476,-151.0,0.00019726,2]
[388570729,1759243899486,-500.0,0.00019726,2]
[388570730,1759243899496,-151.0,0.00019726,2]
[388570731,1759243899505,-151.0,0.00019726,2]
[388570732,1759243899516,-151.0,0.00019726,2]
[388570733,1759243899526,-151.627298,0.00019726,2]
[388570734,1759243899536,-500.0,0.00019726,2]
[388570735,1759243899545,-500.0,0.00019726,2]
[388570736,1759243899555,-500.0,0.00019726,2]
[388570737,1759243899565,-500.0,0.00019726,2]
[388570738,1759243899574,-1660.39,0.00019726,2]
[388570739,1759243899584,-1193.9,0.00019726,2]
[388570740,1759243899594,-500.0,0.00019726,2]
[388570741,1759243899603,-500.0,0.00019726,2]
[388570742,1759243899613,-500.0,0.00019726,2]
[388570743,1759243899623,-2536.15,0.00019726,2]
[388570744,1759243899633,-500.0,0.00019726,2]
[388570745,1759243899643,-751.2,0.00019726,2]
[388570746,1759243899653,-500.0,0.00019726,2]
[388570747,1759243899662,-500.0,0.00019726,2]
[388570748,1759243899672,-500.0,0.00019726,2]
[388570749,1759243899681,-609.64600168,0.00019726,2]
[388570750,1759243899690,-716.83,0.00019726,2]
[388570751,1759243899700,-500.0,0.00019726,2]
[388570752,1759243899710,-338.8847235,0.00019726,2]
[388570753,1759243899719,-500.0,0.00019726,2]
[388570754,1759243899729,-500.0,0.00019726,2]
[388570755,1759243899738,-500.0,0.00019726,2]
[388570756,1759243899749,-500.0,0.00019726,2]
[388570757,1759243899759,-538.27,0.00019726,2]
[388570758,1759243899768,-2795.95,0.00019726,2]
[388570759,1759243899779,-500.0,0.00019726,2]
[388570760,1759243899788,-300.0,0.00019726,2]
[388570761,1759243899798,-500.0,0.00019726,2]
[388570762,1759243900217,-762.14,0.00019726,2]
[388570763,1759243900227,-2494.69,0.00019726,2]
[388570764,1759243900237,-151.0,0.00019726,2]
[388570765,1759243900247,-151.0,0.00019726,2]
[388570766,1759243900256,-500.0,0.00019726,2]
[388570767,1759243900266,-500.0,0.00019726,2]
[388570768,1759243900276,-151.0,0.00019726,2]
[388570769,1759243900285,-151.0,0.00019726,2]
[388570770,1759243900295,-1393.62,0.00019726,2]
[388570771,1759243900304,-151.0,0.00019726,2]
[388570772,1759243900313,-151.0,0.00019726,2]
[388570773,1759243900322,-766.13,0.00019726,2]
[388570774,1759243900332,-500.0,0.00019726,2]
[388570775,1759243900342,-500.0,0.00019726,2]
[388570776,1759243900351,-500.0,0.00019726,2]
[388570777,1759243900361,-897.54,0.00019726,2]
[388570778,1759243900371,-500.0,0.00019726,2]
[388570779,1759243900380,-500.0,0.00019726,2]
[388570780,1759243900390,-151.0,0.00019726,2]
[388570781,1759243900399,-151.0,0.00019726,2]
[388570782,1759243900409,-151.0,0.00019726,2]
[388570783,1759243900419,-151.0,0.00019726,2]
[388570784,1759243900428,-1736.91,0.00019726,2]
[388570785,1759243900438,-945.55,0.00019726,2]
[388570786,1759243900447,-819.73,0.00019726,2]
[388570787,1759243900457,-500.0,0.00019726,2]
[388570788,1759243900466,-1425.3,0.00019726,2]
[388570789,1759243900476,-500.0,0.00019726,2]
[388570790,1759243900485,-500.0,0.00019726,2]
[388570791,1759243900495,-500.0,0.00019726,2]
[388570792,1759243900504,-500.0,0.00019726,2]
[388570793,1759243900514,-500.0,0.00019726,2]
[388570794,1759243900524,-500.0,0.00019726,2]
[388570795,1759243900535,-500.0,0.00019726,2]
[388570796,1759243900544,-517.57,0.00019726,2]
[388570797,1759243900554,-500.0,0.00019726,2]
[388570798,1759243900564,-500.0,0.00019726,2]
[388570799,1759243900573,-2031.98,0.00019726,2]
[388570800,1759243900583,-500.0,0.00019726,2]
[388570801,1759243900592,-500.0,0.00019726,2]
[388570802,1759243900601,-500.0,0.00019726,2]
[388570803,1759243900611,-1063.98,0.00019726,2]
[388570804,1759243900620,-500.0,0.00019726,2]
[388570805,1759243900629,-1050.1,0.00019726,2]
[388570806,1759243900639,-401.37105533,0.00019726,2]
[388570807,1759243900648,-356.55556513,0.00019726,2]
[388570808,1759243900657,-3112.15,0.00019726,2]
[388570809,1759243900667,-500.0,0.00019726,2]
[388570810,1759243900676,-500.0,0.00019726,2]
[388570811,1759243900687,-500.0,0.00019726,2]
[388570812,1759243900696,-620.12,0.00019726,2]
[388570813,1759243900706,-500.0,0.00019726,2]
[388570814,1759243900715,-174.33644408,0.00019726,2]
[388570815,1759243900724,-548.86,0.00019726,2]
[388570816,1759243900734,-1386.24,0.00019726,2]
[388570817,1759243900743,-575.74,0.00019726,2]
[388570818,1759243900752,-500.0,0.00019726,2]
[388570819,1759243900762,-500.0,0.00019726,2]
[388570820,1759243900771,-500.0,0.00019726,2]
[388570821,1759243900781,-500.0,0.00019726,2]
[388570822,1759243900791,-500.0,0.00019726,2]
[388570823,1759243900800,-844.0,0.00019726,2]
[388570824,1759243900809,-500.0,0.00019726,2]
[388570825,1759243900818,-500.0,0.00019726,2]
[388570826,1759243900827,-500.0,0.00019726,2]
[388570827,1759243900837,-662.66,0.00019726,2]
[388570828,1759243900846,-500.0,0.00019726,2]
[388570829,1759243900856,-538.01,0.00019726,2]
[388570830,1759243900865,-273.54744722,0.00019726,2]
[388570831,1759243900874,-888.71,0.00019726,2]
[388570832,1759243900883,-1084.87,0.00019726,2]
[388570833,1759243900892,-858.86,0.00019726,2]
[388570834,1759243900902,-500.0,0.00019726,2]
[388570835,1759243900911,-500.0,0.00019726,2]
[388570836,1759243900920,-500.0,0.00019726,2]
[388570837,1759243900930,-1407.81,0.00019726,2]
[388570838,1759243900939,-500.0,0.00019726,2]
[388570839,1759243900948,-830.02,0.00019726,2]
[388570840,1759243900958,-500.0,0.00019726,2]
[388570841,1759243900967,-500.0,0.00019726,2]
[388570842,1759243900977,-500.0,0.00019726,2]
[388570843,1759243900986,-500.0,0.00019726,2]
[388570844,1759243900996,-784.29,0.00019726,2]
[388570845,1759243901005,-500.0,0.00019726,2]
[388570846,1759243901014,-500.0,0.00019726,2]
[388570847,1759243901024,-607.0209675,0.00019726,2]
[388570848,1759243901033,-500.0,0.00019726,2]
[388570849,1759243901045,-606.45,0.00019726,2]
[388570850,1759243901056,-500.0,0.00019726,2]
[388570851,1759243901065,-500.0,0.00019726,2]
[388570852,1759243901075,-781.28,0.00019726,2]
[388570853,1759243901086,-1632.14,0.00019726,2]
[388570854,1759243901095,-500.0,0.00019726,2]
[388570855,1759243901104,-312.48414915,0.00019726,2]
[388570856,1759243901114,-500.0,0.00019726,2]
[388570857,1759243901123,-1546.9,0.00019726,2]
[388570858,1759243901133,-500.0,0.00019726,2]
[388570859,1759243901142,-500.0,0.00019726,2]
[388570860,1759243901152,-500.0,0.00019726,2]
[388570861,1759243901162,-500.0,0.00019726,2]
[388570862,1759243901171,-1277.63,0.00019726,2]
[388570863,1759243901181,-500.0,0.00019726,2]
[388570864,1759243901191,-500.0,0.00019726,2]
[388570865,1759243901202,-500.0,0.00019726,2]
[388570866,1759243901213,-500.0,0.00019726,2]
[388570867,1759243901224,-3256.72,0.00019726,2]
[388570868,1759243901234,-500.0,0.00019726,2]
[388570869,1759243901246,-1956.66,0.00019726,2]
[388570870,1759243901255,-1850.29,0.00019726,2]
[388570871,1759243901265,-500.0,0.00019726,2]
[388570872,1759243901275,-500.0,0.00019726,2]
[388570873,1759243901284,-500.0,0.00019726,2]
[388570874,1759243901293,-2648.22,0.00019726,2]
[388570875,1759243901303,-151.0,0.00019726,2]
[388570876,1759243901312,-151.0,0.00019726,2]
[388570877,1759243901322,-500.0,0.00019726,2]
[388570878,1759243901331,-184.593684,0.00019726,2]
[388570879,1759243901340,-500.0,0.00019726,2]
[388570880,1759243901350,-500.0,0.00019726,2]
[388570881,1759243901359,-500.0,0.00019726,2]
[388570882,1759243901368,-500.0,0.00019726,2]
[388570883,1759243901377,-500.0,0.00019726,2]
[388570884,1759243901387,-151.0,0.00019726,2]
[388570885,1759243901396,-511.00185349,0.00019726,2]
[388570886,1759243901406,-871.77,0.00019726,2]
[388570887,1759243901416,-500.0,0.00019726,2]
[388570888,1759243901426,-906.24,0.00019726,2]
[388570889,1759243901437,-500.0,0.00019726,2]
[388570890,1759243901449,-500.0,0.00019726,2]
[388570891,1759243901460,-2592.08,0.00019726,2]
[388570892,1759243901474,-1643.07,0.00019726,2]
[388570893,1759243901484,-500.0,0.00019726,2]
[388570894,1759243901494,-796.84,0.00019726,2]
[388570895,1759243901503,-300.82285741,0.00019726,2]
[388570896,1759243901514,-500.0,0.00019726,2]
[388570897,1759243901523,-599.93,0.00019726,2]
[388570898,1759243901533,-500.0,0.00019726,2]
[388570899,1759243901542,-645.06,0.00019726,2]
[388570900,1759243901551,-573.86,0.00019726,2]
[388570901,1759243901561,-500.0,0.00019726,2]
[388570902,1759243901570,-500.0,0.00019726,2]
[388570903,1759243901580,-500.0,0.00019726,2]
[388570904,1759243901590,-500.0,0.00019726,2]
[388570905,1759243901600,-500.0,0.00019726,2]
[388570906,1759243901609,-517.76,0.00019726,2]
[388570907,1759243901620,-500.0,0.00019726,2]
[388570908,1759243901629,-500.0,0.00019726,2]
[388570909,1759243901638,-2674.6,0.00019726,2]
[388570910,1759243901648,-500.0,0.00019726,2]
[388570911,1759243901658,-500.0,0.00019726,2]
[388570912,1759243901667,-500.0,0.00019726,2]
[388570913,1759243901676,-500.0,0.00019726,2]
[388570914,1759243901686,-1654.09,0.00019726,2]
[388570915,1759243901695,-1482.77,0.00019726,2]
[388570916,1759243901705,-500.0,0.00019726,2]
[388570917,1759243901715,-500.0,0.00019726,2]
[388570918,1759243901724,-500.0,0.00019726,2]
[388570919,1759243901734,-548.22,0.00019726,2]
[388570920,1759243901743,-1091.82,0.00019726,2]
[388570921,1759243901753,-500.0,0.00019726,2]
[388570922,1759243901763,-500.0,0.00019726,2]
[388570923,1759243901772,-500.0,0.00019726,2]
[388570924,1759243901782,-647.51,0.00019726,2]
[388570925,1759243901792,-155.03126903,0.00019726,2]
[388570926,1759243901801,-500.0,0.00019726,2]
[388570927,1759243901810,-1006.6,0.00019726,2]
[388570928,1759243901819,-151.0,0.00019726,2]
[388570929,1759243901830,-153.234815,0.00019726,2]
[388570930,1759243901840,-1363.1,0.00019726,2]
[388570931,1759243901849,-500.0,0.00019726,2]
[388570932,1759243901858,-500.0,0.00019726,2]
[388570933,1759243901867,-500.0,0.00019726,2]
[388570934,1759243901877,-500.0,0.00019726,2]
[388570935,1759243901887,-500.0,0.00019726,2]
[388570936,1759243901897,-500.0,0.00019726,2]
[388570937,1759243901906,-427.68165922,0.00019726,2]
[388570938,1759243901916,-500.0,0.00019726,2]
[388570939,1759243901927,-500.0,0.00019726,2]
[388570940,1759243901936,-500.0,0.00019726,2]
[388570941,1759243901946,-1429.66,0.00019726,2]
[388570942,1759243901955,-620.09,0.00019726,2]
[388570943,1759243901965,-151.0,0.00019726,2]
[388570944,1759243901975,-151.0,0.00019726,2]
[388570945,1759243901985,-151.0,0.00019726,2]
[388570946,1759243901994,-500.0,0.00019726,2]
[388570947,1759243902003,-500.0,0.00019726,2]
[388570948,1759243902014,-555.31,0.00019726,2]
[388570949,1759243902023,-151.0,0.00019726,2]
[388570950,1759243902034,-500.0,0.00019726,2]
[388570951,1759243902048,-500.0,0.00019726,2]
[388570952,1759243902058,-2391.54,0.00019726,2]
[388570953,1759243902067,-151.0,0.00019726,2]
[388570954,1759243902076,-677.04,0.00019726,2]
[388570955,1759243902087,-243.987485,0.00019726,2]
[388570956,1759243902096,-1407.34,0.00019726,2]
[388570957,1759243902105,-500.0,0.00019726,2]
[388570958,1759243902114,-739.07,0.00019726,2]
[388570959,1759243902123,-500.0,0.00019726,2]
[388570960,1759243902133,-2005.31,0.00019726,2]
[388570961,1759243902142,-519.38,0.00019726,2]
[388570962,1759243902152,-500.0,0.00019726,2]
[388570963,1759243902161,-912.82,0.00019726,2]
[388570964,1759243902171,-2509.91,0.00019726,2]
[388570965,1759243902180,-500.0,0.00019726,2]
[388570966,1759243902190,-984.15,0.00019726,2]
[388570967,1759243902200,-500.0,0.00019726,2]
[388570968,1759243902210,-500.0,0.00019726,2]
[388570969,1759243902220,-152.808935,0.00019726,2]
[388570970,1759243902230,-500.0,0.00019726,2]
[388570971,1759243902241,-500.0,0.00019726,2]
[388570972,1759243902251,-500.0,0.00019726,2]
[388570973,1759243902262,-500.0,0.00019726,2]
[388570974,1759243902272,-1642.32,0.00019726,2]
[388570975,1759243902283,-500.0,0.00019726,2]
[388570976,1759243902292,-500.0,0.00019726,2]
[388570977,1759243902302,-500.0,0.00019726,2]
[388570978,1759243902312,-500.0,0.00019726,2]
[388570979,1759243902321,-500.0,0.00019726,2]
[388570980,1759243902331,-1352.36,0.00019726,2]
[388570981,1759243902340,-1715.07,0.00019726,2]
[388570982,1759243902349,-500.0,0.00019726,2]
[388570983,1759243902359,-500.0,0.00019726,2]
[388570984,1759243902369,-500.0,0.00019726,2]
[388570985,1759243902378,-500.0,0.00019726,2]
[388570986,1759243902387,-500.0,0.00019726,2]
[388570987,1759243902397,-500.0,0.00019726,2]
[388570988,1759243902406,-696.76,0.00019726,2]
[388570989,1759243902416,-500.0,0.00019726,2]
[388570990,1759243902426,-500.0,0.00019726,2]
[388570991,1759243902435,-500.0,0.00019726,2]
[388570992,1759243902447,-500.0,0.00019726,2]
[388570993,1759243902456,-500.0,0.00019726,2]
[388570994,1759243902467,-1633.53,0.00019726,2]
[388570995,1759243902478,-1137.08,0.00019726,2]
[388570996,1759243902488,-2799.17,0.00019726,2]
[388570997,1759243902500,-792.06,0.00019726,2]
[388570998,1759243902510,-152.615765,0.00019726,2]
[388570999,1759243902520,-151.0,0.00019726,2]
[388571000,1759243902531,-500.0,0.00019726,2]
[388571001,1759243902540,-500.0,0.00019726,2]
[388571002,1759243902667,-1590.7,0.00019726,2]
[388571003,1759243902678,-500.0,0.00019726,2]
[388571004,1759243902688,-432.78182305,0.00019726,2]
[388571005,1759243902697,-636.3,0.00019726,2]
[388571006,1759243902706,-705.59,0.00019726,2]
[388571007,1759243902715,-900.53,0.00019726,2]
[388571008,1759243902725,-2925.57,0.00019726,2]
[388571009,1759243902734,-500.0,0.00019726,2]
[388571010,1759243902743,-2601.54,0.00019726,2]
[388571011,1759243902753,-151.0,0.00019726,2]
[388571012,1759243902762,-500.0,0.00019726,2]
[388571013,1759243902771,-500.0,0.00019726,2]
[388571014,1759243902780,-1693.84,0.00019726,2]
[388571015,1759243902790,-500.0,0.00019726,2]
[388571016,1759243902799,-151.575418,0.00019726,2]
[388571017,1759243902809,-152.467257,0.00019726,2]
[388571018,1759243902818,-500.0,0.00019726,2]
[388571019,1759243902827,-500.0,0.00019726,2]
[388571020,1759243902837,-500.0,0.00019726,2]
[388571021,1759243902847,-1076.9,0.00019726,2]
[388571022,1759243902856,-500.0,0.00019726,2]
[388571023,1759243902867,-780.07,0.00019726,2]
[388571024,1759243902878,-500.0,0.00019726,2]
[388571025,1759243902887,-500.0,0.00019726,2]
[388571026,1759243902896,-500.0,0.00019726,2]
[388571027,1759243902906,-1487.72,0.00019726,2]
[388571028,1759243902916,-3712.54,0.00019726,2]
[388571029,1759243902926,-1380.28,0.00019726,2]
[388571030,1759243902936,-513.58,0.00019726,2]
[388571031,1759243902945,-512.86,0.00019726,2]
[388571032,1759243902955,-941.59,0.00019726,2]
[388571033,1759243902965,-500.0,0.00019726,2]
[388571034,1759243902975,-714.53,0.00019726,2]
[388571035,1759243902985,-1392.68,0.00019726,2]
[388571036,1759243902995,-500.0,0.00019726,2]
[388571037,1759243903005,-500.0,0.00019726,2]
[388571038,1759243903015,-1238.43,0.00019726,2]
[388571039,1759243903024,-500.0,0.00019726,2]
[388571040,1759243903034,-500.0,0.00019726,2]
[388571041,1759243903047,-840.76,0.00019726,2]
[388571042,1759243903057,-500.0,0.00019726,2]
[388571043,1759243903067,-596.99,0.00019726,2]
[388571044,1759243903077,-808.21,0.00019726,2]
[388571045,1759243903086,-500.0,0.00019726,2]
[388571046,1759243903096,-500.0,0.00019726,2]
[388571047,1759243903106,-540.1,0.00019726,2]
[388571048,1759243903115,-2070.05,0.00019726,2]
[388571049,1759243903126,-500.0,0.00019726,2]
[388571050,1759243903136,-560.58,0.00019726,2]
[388571051,1759243903145,-500.0,0.00019726,2]
[388571052,1759243903155,-540.1,0.00019726,2]
[388571053,1759243903165,-500.0,0.00019726,2]
[388571054,1759243903174,-817.6,0.00019726,2]
[388571055,1759243903184,-500.0,0.00019726,2]
[388571056,1759243903193,-500.0,0.00019726,2]
[388571057,1759243903202,-500.0,0.00019726,2]
[388571058,1759243903212,-500.0,0.00019726,2]
[388571059,1759243903222,-500.0,0.00019726,2]
[388571060,1759243903232,-5355.07,0.00019726,2]
[388571061,1759243903241,-2335.08,0.00019726,2]
[388571062,1759243903251,-500.0,0.00019726,2]
[388571063,1759243903260,-500.0,0.00019726,2]
[388571064,1759243903270,-1147.67,0.00019726,2]
[388571065,1759243903280,-500.0,0.00019726,2]
[388571066,1759243903290,-500.0,0.00019726,2]
[388571067,1759243903299,-3505.26,0.00019726,2]
[388571068,1759243903309,-1760.32,0.00019726,2]
[388571069,1759243903319,-509.08,0.00019726,2]
[388571070,1759243903328,-3350.21,0.00019726,2]
[388571071,1759243903339,-500.0,0.00019726,2]
[388571072,1759243903349,-500.0,0.00019726,2]
[388571073,1759243903358,-2164.5,0.00019726,2]
[388571074,1759243903368,-500.0,0.00019726,2]
[388571075,1759243903378,-621.6,0.00019726,2]
[388571076,1759243903387,-3511.46,0.00019726,2]
[388571077,1759243903397,-1195.98,0.00019726,2]
[388571078,1759243903407,-3353.46,0.00019726,2]
[388571079,1759243903416,-500.0,0.00019726,2]
[388571080,1759243903425,-500.0,0.00019726,2]
[388571081,1759243903435,-1599.6,0.00019726,2]
[388571082,1759243903444,-1240.5,0.00019726,2]
[388571083,1759243903454,-500.0,0.00019726,2]
[388571084,1759243903463,-5540.87,0.00019726,2]
[388571085,1759243903473,-500.0,0.00019726,2]
[388571086,1759243903482,-805.73,0.00019726,2]
[388571087,1759243903492,-500.0,0.00019726,2]
[388571088,1759243903501,-2715.19,0.00019726,2]
[388571089,1759243903511,-155.785656,0.00019726,2]
[388571090,1759243903520,-155.785656,0.00019726,2]
[388571091,1759243903531,-1797.12,0.00019726,2]
[388571092,1759243903541,-155.785656,0.00019726,2]
[388571093,1759243903551,-6610.98,0.00019726,2]
[388571094,1759243903560,-155.785656,0.00019726,2]
[388571095,1759243903570,-500.0,0.00019726,2]
[388571096,1759243903579,-705.44,0.00019726,2]
[388571097,1759243903589,-155.785656,0.00019726,2]
[388571098,1759243903599,-155.785656,0.00019726,2]
[388571099,1759243903610,-853.5,0.00019726,2]
[388571100,1759243903620,-500.0,0.00019726,2]
[388571101,1759243903629,-155.785656,0.00019726,2]
[388571102,1759243903639,-550.77,0.00019726,2]
[388571103,1759243903649,-155.785656,0.00019726,2]
[388571104,1759243903659,-500.0,0.00019726,2]
[388571105,1759243903668,-500.0,0.00019726,2]
[388571106,1759243903677,-500.0,0.00019726,2]
[388571107,1759243903687,-5110.4,0.00019726,2]
[388571108,1759243903697,-500.0,0.00019726,2]
[388571109,1759243903706,-500.0,0.00019726,2]
[388571110,1759243903716,-500.0,0.00019726,2]
[388571111,1759243903726,-1675.3,0.00019726,2]
[388571112,1759243903735,-500.0,0.00019726,2]
[388571113,1759243903745,-500.0,0.00019726,2]
[388571114,1759243903755,-500.0,0.00019726,2]
[388571115,1759243903765,-1575.48,0.00019726,2]
[388571116,1759243903775,-500.0,0.00019726,2]
[388571117,1759243903786,-1581.9,0.00019726,2]
[388571118,1759243903795,-612.19,0.00019726,2]
[388571119,1759243903804,-2157.08,0.00019726,2]
[388571120,1759243903814,-4283.19,0.00019726,2]
[388571121,1759243903824,-1098.61,0.00019726,2]
[388571122,1759243903833,-500.0,0.00019726,2]
[388571123,1759243903842,-500.0,0.00019726,2]
[388571124,1759243903852,-586.61,0.00019726,2]
[388571125,1759243903862,-500.0,0.00019726,2]
[388571126,1759243903872,-2415.06,0.00019726,2]
[388571127,1759243903882,-534.22384938,0.00019726,2]
[388571128,1759243903892,-5438.8,0.00019726,2]
[388571129,1759243903901,-1045.49,0.00019726,2]
[388571130,1759243903910,-500.0,0.00019726,2]
[388571131,1759243903919,-500.0,0.00019726,2]
[388571132,1759243903929,-957.45,0.00019726,2]
[388571133,1759243903938,-1286.78,0.00019726,2]
[388571134,1759243903947,-571.65,0.00019726,2]
[388571135,1759243903957,-1218.74,0.00019726,2]
[388571136,1759243903966,-2166.0,0.00019726,2]
[388571137,1759243903976,-5083.05,0.00019726,2]
[388571138,1759243903985,-4808.33,0.00019726,2]
[388571139,1759243903995,-2880.85,0.00019726,2]
[388571140,1759243904004,-883.74,0.00019726,2]
[388571141,1759243904014,-500.0,0.00019726,2]
[388571142,1759243904024,-500.0,0.00019726,2]
[388571143,1759243904036,-1373.2,0.00019726,2]
[388571144,1759243904049,-500.0,0.00019726,2]
[388571145,1759243904060,-500.0,0.00019726,2]
[388571146,1759243904070,-500.0,0.00019726,2]
[388571147,1759243904079,-500.0,0.00019726,2]
[388571148,1759243904089,-500.0,0.00019726,2]
[388571149,1759243904098,-806.47,0.00019726,2]
[388571150,1759243904109,-549.1,0.00019726,2]
[388571151,1759243904118,-1566.99,0.00019726,2]
[388571152,1759243904128,-500.0,0.00019726,2]
[388571153,1759243904138,-500.0,0.00019726,2]
[388571154,1759243904147,-500.0,0.00019726,2]
[388571155,1759243904157,-5111.26,0.00019726,2]
[388571156,1759243904166,-636.06,0.00019726,2]
[388571157,1759243904175,-500.0,0.00019726,2]
[388571158,1759243904185,-500.0,0.00019726,2]
[388571159,1759243904194,-598.08,0.00019726,2]
[388571160,1759243904203,-500.0,0.00019726,2]
[388571161,1759243904213,-2718.85,0.00019726,2]
[388571162,1759243904223,-151.0,0.00019726,2]
[388571163,1759243904232,-636.1,0.00019726,2]